fUSD/lending_fUSD_20250711
["ID","MTS","AMOUNT","RATE_DAILY","PERIOD"]
[371039602,1752195039987,-14153.8176959,0.0003998,3]
[371039605,1752195039997,-14153.8176959,0.0003998,3]
[371039607,1752195040006,-151.0,0.0003998,14]
[371039610,1752195040016,-151.0,0.0003998,14]
[371039613,1752195040025,-151.0,0.0003998,14]
[371039615,1752195040035,-151.0,0.0003998,14]
[371039617,1752195040045,-151.0,0.0003998,14]
[371039619,1752195040054,-151.0,0.0003998,14]
[371039621,1752195040064,-151.0,0.0003998,14]
[371039623,1752195040074,-151.0,0.0003998,14]
[371039625,1752195040083,-151.0,0.0003998,14]
[371039627,1752195040093,-1450.84252456,0.0003998,26]
[371039629,1752195040102,-44659.89468768,0.0003998,3]
[371039634,1752195040141,-23000.0,0.0003998,3]
[371039636,1752195040152,-448.42580577,0.0003998,3]
[371039638,1752195040163,-8960.69357665,0.0003998,3]
[371040167,1752195045533,-281.94,0.0003676,2]
[371040169,1752195045543,-257.67,0.0003676,2]
[371040171,1752195045552,-347.39,0.0003998,3]
[371040187,1752195045690,-84693.85819011,0.0003998,3]
[371040205,1752195045861,-732.18180926,0.0003998,3]
[371042024,1752195064974,150.0,0.00025,2]
[371042074,1752195065435,150.0,0.0002541,2]
[371042265,1752195067382,150.0,0.0002582,2]
[371042325,1752195067949,150.0,0.0002622,2]
[371042373,1752195068403,150.0,0.0002663,2]
[371042420,1752195068853,150.0,0.0002704,2]
[371042465,1752195069386,400.0,0.0002488,7]
[371043093,1752195236238,3500.0,0.000245,30]
[371043094,1752195376876,154.6,0.000245,30]
[371043100,1752195725332,154.53,0.00013699,2]
[371043107,1752196031106,-150.0,0.00025,2]
[371043108,1752196031126,-121.79792024,0.00025,2]
[371043110,1752196048130,-629.19886275,0.000249,2]
[371043111,1752196048152,-460.65644466,0.00025,2]
[371043112,1752196145098,-2977.5456351,0.00025,2]
[371043113,1752196145119,-150.0,0.0002541,2]
[371043114,1752196145140,-150.0,0.0002582,2]
[371043115,1752196145375,-150.0,0.0002622,2]
[371043116,1752196145398,-1200.0,0.00026629,2]
[371043117,1752196145420,-150.0,0.0002663,2]
[371043118,1752196146087,-636.0,0.00026999,2]
[371043119,1752196146109,-2208.075459,0.00027,2]
[371043120,1752196146130,-150.0,0.0002704,2]
[371043121,1752196148141,-600.0,0.00027397,2]
[371043122,1752196148165,-463.8882234,0.00027397,2]
[371043123,1752196148188,-154.53,0.00027397,2]
[371043124,1752196148212,-600.0,0.00027497,2]
[371043125,1752196148238,-425.55528936,0.00027597,2]
[371043127,1752196231649,-416.24749793,0.00028004,2]
[371043128,1752196231862,-212.95136482,0.00028004,2]
[371043129,1752196231872,-155.12,0.00029443,2]
[371043130,1752196231882,-150.0,0.000301,2]
[371043131,1752196231892,-984.63385813,0.000301,2]
[371043132,1752196231922,-571.67614187,0.000301,2]
[371043133,1752196231931,-300.0,0.00030266,2]
[371043134,1752196231940,-1281.0,0.00030266,2]
[371043135,1752196231949,-9107.92,0.00030267,2]
[371043136,1752196231959,-825.93,0.00030267,10]
[371043137,1752196231968,-150.99,0.00030267,2]
[371043138,1752196231978,-2405.43,0.00030267,2]
[371043140,1752196231988,-500.0,0.00030642,7]
[371043142,1752196231997,-629.19886275,0.00031107,2]
[371043144,1752196232007,-500.0,0.00031521,7]
[371043146,1752196232016,-531.0,0.000316,5]
[371043148,1752196232026,-210.4254034,0.00031792,2]
[371043150,1752196232036,-150.0,0.00032999,2]
[371043152,1752196232045,-532.746338,0.00033,14]
[371043154,1752196232055,-179.0,0.00033,14]
[371043156,1752196232065,-176.97,0.00033931,2]
[371043158,1752196232075,-605.02,0.00033931,37]
[371043160,1752196232084,-629.19886275,0.00034211,2]
[371043162,1752196232094,-200.69580895,0.00035,120]
[371043165,1752196232103,-155.12,0.00035332,2]
[371043168,1752196232113,-24577.43,0.00035639,2]
[371043170,1752196232123,-666.0,0.00035775,2]
[371043173,1752196232132,-2813.24,0.000358,2]
[371043175,1752196232143,-165.72,0.00035967,2]
[371043177,1752196232153,-249.31,0.00036,7]
[371043179,1752196232163,-301.68846684,0.00036004,2]
[371043181,1752196232175,-1.97153316,0.00036004,2]
[371043183,1752196232184,-302.72,0.00036004,2]
[371043185,1752196232195,-301.15,0.00036004,2]
[371043188,1752196232205,-302.68,0.00036004,2]
[371043189,1752196232215,-305.81,0.00036004,2]
[371043191,1752196232225,-300.13,0.00036004,2]
[371043192,1752196232235,-305.27,0.00036004,2]
[371043193,1752196232245,-1000.0,0.00036187,2]
[371043194,1752196232257,-179.33,0.00036228,2]
[371043195,1752196232266,-512.0,0.00036296,2]
[371043196,1752196232276,-5000.0,0.00036378,2]
[371043197,1752196232285,-23900.0,0.0003643,2]
[371043198,1752196232294,-151.39,0.00036536,2]
[371043199,1752196232306,-178.34,0.00036729,120]
[371043200,1752196232316,-439.36,0.00036964,2]
[371043201,1752196232325,-2813.24,0.00037,2]
[371043202,1752196232336,-3668.04,0.00037084,2]
[371043203,1752196232346,-1000.0,0.000373,2]
[371043204,1752196232355,-629.19886275,0.00037314,2]
[371043205,1752196232364,-455.31,0.00037362,2]
[371043206,1752196232373,-200.0,0.00037381,2]
[371043207,1752196232383,-200.0,0.00037381,7]
[371043208,1752196232394,-168.0,0.00037514,7]
[371043209,1752196232403,-300.0,0.00037532,85]
[371043210,1752196232412,-1000.0,0.00037536,120]
[371043211,1752196232422,-628.0,0.00037536,120]
[371043212,1752196232431,-3042.80961831,0.00037536,120]
[371043213,1752196232440,-2502.61328922,0.00037536,120]
[371043217,1752196237613,-302.23,0.00036004,2]
[371043218,1752196237623,-562.33112375,0.00037536,120]
[371043219,1752196237634,-512.0,0.00037543,5]
[371043220,1752196237645,-168.0,0.00037555,7]
[371043221,1752196237663,-168.0,0.00037585,2]
[371043222,1752196237672,-305.25,0.00037604,2]
[371043223,1752196237682,-190.09274294,0.00037802,20]
[371043224,1752196237693,-2813.24,0.000379,2]
[371043225,1752196237703,-168.0,0.00037902,2]
[371043226,1752196237714,-13142.2078423,0.00037934,2]
[371043227,1752196237724,-1524.18,0.00037944,30]
[371043228,1752196237734,-168.0,0.00038074,7]
[371043229,1752196237744,-168.0,0.00038228,120]
[371043230,1752196237755,-500.0,0.0003824,2]
[371043231,1752196237764,-500.0,0.0003824,2]
[371043232,1752196237775,-500.0,0.0003824,2]
[371043233,1752196237785,-500.0,0.0003824,2]
[371043234,1752196237795,-547.0,0.0003824,2]
[371043235,1752196237805,-2751.0,0.0003824,120]
[371043236,1752196237815,-395.2,0.0003824,2]
[371043237,1752196237825,-907.59587841,0.00038404,5]
[371043238,1752196237835,-1000.0,0.000385,120]
[371043239,1752196237845,-1000.0,0.000385,7]
[371043240,1752196237855,-240.31422203,0.00038536,2]
[371043241,1752196237865,-2813.24,0.000386,2]
[371043242,1752196237875,-168.0,0.00038621,2]
[371043243,1752196237885,-165.72,0.00038665,2]
[371043244,1752196237895,-168.0,0.0003869,120]
[371043245,1752196237906,-164.78,0.00038742,2]
[371043246,1752196237923,-168.0,0.00038745,2]
[371043247,1752196237932,-1147.640486,0.00038783,16]
[371043248,1752196237942,-168.0,0.00038784,2]
[371043249,1752196237952,-512.0,0.00038791,8]
[371043250,1752196237962,-2813.24,0.000388,2]
[371043251,1752196237971,-2857.83,0.00038981,2]
[371043252,1752196237981,-2000.0,0.00039,30]
[371043253,1752196237991,-2000.0,0.00039,120]
[371043254,1752196238001,-168.0,0.00039049,2]
[371043256,1752196238011,-179.36054508,0.00039169,2]
[371043258,1752196238021,-500.0,0.00039171,7]
[371043260,1752196238031,-736.2,0.00039178,2]
[371043262,1752196238040,-305.2,0.00039181,2]
[371043264,1752196238051,-356.59,0.00039181,2]
[371043266,1752196238062,-150.0,0.00039181,2]
[371043268,1752196238073,-150.0,0.00039181,2]
[371043270,1752196238083,-150.0,0.00039181,2]
[371043272,1752196238093,-436.77,0.00039181,2]
[371043274,1752196238104,-356.59,0.00039181,2]
[371043276,1752196238113,-150.0,0.00039181,2]
[371043278,1752196238125,-356.59,0.00039181,2]
[371043280,1752196238135,-355.45,0.00039181,2]
[371043282,1752196238145,-7437.15959736,0.000392,30]
[371043284,1752196238154,-168.0,0.00039269,7]
[371043286,1752196238163,-150.0,0.00039323,2]
[371043288,1752196238172,-150.0,0.00039324,2]
[371043290,1752196238181,-150.0,0.00039324,2]
[371043292,1752196238191,-150.0,0.00039324,2]
[371043294,1752196238200,-150.86,0.00039324,2]
[371043296,1752196238209,-168.0,0.00039325,7]
[371043298,1752196238219,-300.0,0.000394,14]
[371043300,1752196238228,-168.0,0.00039411,2]
[371043302,1752196238238,-1726.0,0.000395,120]
[371043304,1752196238249,-1000.0,0.000395,7]
[371043306,1752196238263,-600.0,0.000395,14]
[371043309,1752196238274,-189.07,0.0003952,2]
[371043310,1752196238283,-168.0,0.00039553,2]
[371043312,1752196238293,-168.0,0.00039596,2]
[371043314,1752196238303,-900.0,0.000396,14]
[371043317,1752196238313,-1200.0,0.000397,14]
[371043319,1752196238323,-3216.48727706,0.000397,22]
[371043322,1752196238351,-4328.5356,0.000397,22]
[371043324,1752196238363,-2487.22712294,0.000397,22]
[371043326,1752196238373,-189.07,0.00039718,2]
[371043328,1752196238383,-168.0,0.00039771,120]
[371043330,1752196238393,-586.63903706,0.00039799,2]
[371043333,1752196238406,-1087.49962584,0.00039799,2]
[371043335,1752196238415,-1500.0,0.000398,14]
[371043336,1752196238426,-655.1721521,0.000398,50]
[371043339,1752196238436,-168.0,0.00039807,2]
[371043341,1752196238446,-393.21862206,0.0003981,15]
[371043343,1752196238458,-1280.92004075,0.0003981,15]
[371043345,1752196238467,-1674.13866281,0.00039821,15]
[371043347,1752196238475,-168.0,0.00039828,7]
[371043349,1752196238484,-1004.07129644,0.00039833,15]
[371043371,1752196238719,-670.06736637,0.00039833,15]
[371043373,1752196238728,-1674.13866281,0.00039844,15]
[371043375,1752196238739,-179.33,0.0003985,2]
[371043377,1752196238749,-1674.13866281,0.00039855,15]
[371043379,1752196238760,-96.31763721,0.00039866,15]
[371043466,1752196239589,-1577.8210256,0.00039866,15]
[371043468,1752196239599,-544.50718324,0.00039878,15]
[371043470,1752196239611,-282.50110382,0.00039878,15]
[371043472,1752196239623,-847.13037575,0.00039878,15]
[371043474,1752196239632,-21.39260551,0.00039889,15]
[371043530,1752196240099,-1652.7460573,0.00039889,15]
[371043532,1752196240108,-242.6538721,0.00039899,2]
[371043534,1752196240118,-2000.0,0.000399,30]
[371043537,1752196240127,-405.16827821,0.000399,2]
[371043542,1752196240144,-4594.83172179,0.000399,2]
[371043545,1752196240153,-300.0,0.000399,14]
[371043548,1752196240166,-1674.13866281,0.000399,15]
[371043551,1752196240176,-155.0,0.000399,120]
[371043554,1752196240185,-219.94975575,0.000399,8]
[371043557,1752196240195,-2761.41818965,0.000399,2]
[371043840,1752196242978,-1020.70664118,0.000399,2]
[371044110,1752196245682,-217.64,0.00038459,2]
[371044112,1752196245692,-1019.67323416,0.000399,2]
[371044161,1752196246276,-5838.8028042,0.000399,2]
[371047321,1752196290992,150.0,0.00025,2]
[371047322,1752196291451,270.0,0.0002541,2]
[371047326,1752196924440,154.75,0.00013699,2]
[371047330,1752197155705,2106.6,0.00015,10]
[371047331,1752197219413,-249.96661682,0.00019899,2]
[371047332,1752197239077,-564.0,0.00019899,2]
[371047333,1752197239098,-300.0,0.00019899,2]
[371047334,1752197239118,-1384.57740145,0.000199,2]
[371047337,1752197248083,-2214.45648173,0.000199,2]
[371047338,1752197251103,-2134.00269013,0.000199,2]
[371047339,1752197265504,1237.0,0.00030137,120]
[371047341,1752197350102,-300.0,0.00019899,2]
[371047342,1752197350123,-32093.94998,0.000199,2]
[371047343,1752197350149,-8948.18105647,0.000199,2]
[371047344,1752197350171,-253.0900519,0.000199,2]
[371047345,1752197350203,-515.9897196,0.0002,2]
[371047346,1752197350225,-452.35028533,0.0002,2]
[371047347,1752197350245,-1027.58061467,0.0002,4]
[371047348,1752197350266,-1018.71396246,0.0002,2]
[371047349,1752197350286,-2791.02155356,0.0002,2]
[371047350,1752197350306,-2360.62829438,0.0002001,2]
[371047351,1752197350327,-19862.23908965,0.000207,2]
[371047352,1752197350347,-156.0,0.00020888,2]
[371047353,1752197350368,-16307.79006568,0.00020889,2]
[371047354,1752197350390,-605.89173614,0.00021,2]
[371047355,1752197350411,-404.0,0.0002167,2]
[371047356,1752197350432,-517.67571266,0.00021918,2]
[371047357,1752197350453,-5911.4379169,0.00024,5]
[371047358,1752197350473,-581.24910034,0.0002465,2]
[371047359,1752197350494,-3103.90491354,0.0002465,2]
[371047360,1752197350516,-162.68122778,0.0002465,2]
[371047361,1752197350537,-11626.13140698,0.0002465,2]
[371047362,1752197350560,-7244.95895013,0.0002465,2]
[371047363,1752197350580,-1155.0,0.0002488,7]
[371047364,1752197350601,-167.66266626,0.00024898,2]
[371047365,1752197350624,-725.42126228,0.00024899,2]
[371047366,1752197350645,-199037.75807464,0.00024899,2]
[371047367,1752197350665,-150.0,0.00025,2]
[371047368,1752197350685,-151.0,0.00025,7]
[371047369,1752197350706,-150.0,0.0002541,2]
[371047370,1752197350727,-150.0,0.0002582,2]
[371047371,1752197350748,-150.0,0.0002622,2]
[371047372,1752197350767,-1056.35616194,0.000264,2]
[371047373,1752197350789,-150.0,0.0002663,2]
[371047374,1752197350809,-150.0,0.0002704,2]
[371047375,1752197350893,170.0,0.0002167,2]
[371047386,1752197413613,165.47762719,0.00024898,2]
[371047392,1752197432194,-154.3640919,0.00027397,2]
[371047393,1752197432207,-154.75,0.00027397,2]
[371047394,1752197432221,-260.0,0.0002745,3]
[371047395,1752197432233,-370.26,0.000285,7]
[371047396,1752197432245,-214.98568962,0.000285,30]
[371047397,1752197432258,-250.0,0.00030137,2]
[371047398,1752197432270,-1078.8629699,0.00031,30]
[371047399,1752197432283,-956.0,0.000314,5]
[371047401,1752197432294,-432.0,0.00031837,3]
[371047403,1752197432307,-9814.5,0.00031838,2]
[371047405,1752197432319,-150.99,0.00031838,2]
[371047407,1752197432331,-5093.79,0.00031838,2]
[371047409,1752197432343,-150.99,0.00031838,2]
[371047410,1752197432355,-154.3640919,0.00031938,2]
[371047411,1752197432371,-216.5,0.00031938,30]
[371047412,1752197432383,-837.44822953,0.00031951,2]
[371047414,1752197432397,-343.29578289,0.00033831,2]
[371047415,1752197432408,-1371.76,0.00033911,30]
[371047417,1752197432422,-311.88470344,0.00033999,2]
[371047419,1752197432434,-13091.67793903,0.00034089,2]
[371047420,1752197432450,-1048.43637469,0.00034089,2]
[371047421,1752197432465,-9832.08832018,0.00034089,2]
[371047422,1752197432478,-23900.0,0.00034099,2]
[371047423,1752197432491,-181.48,0.00034168,2]
[371047424,1752197432503,-176.97,0.00034402,2]
[371047425,1752197432515,-484.016,0.00034402,38]
[371047426,1752197432527,-154.3640919,0.000346,2]
[371047427,1752197432540,-311.88470336,0.00034653,2]
[371047428,1752197432553,-200.0,0.00034923,7]
[371047429,1752197432566,-7445.67040892,0.0003499,2]
[371047430,1752197432583,-627.68208494,0.0003499,2]
[371047581,1752197439936,-317.85,0.0003499,2]
[371047584,1752197439948,-1154.63468044,0.0003499,2]
[371047586,1752197439959,-442.26865088,0.0003499,2]
[371047596,1752197440046,-814.67259364,0.0003499,2]
[371047598,1752197440057,-561.54101666,0.0003499,2]
[371047600,1752197440068,-2128.63986883,0.0003499,2]
[371047602,1752197440079,-1767.76028794,0.0003499,2]
[371047614,1752197440176,-759.17876313,0.0003499,2]
[371047616,1752197440188,-1318.47825786,0.0003499,2]
[371047618,1752197440199,-255.67333895,0.0003499,2]
[371047630,1752197440304,-2512.5020036,0.0003499,2]
[371047632,1752197440315,-3865.65067811,0.0003499,2]
[371047634,1752197440325,-337.54,0.00034999,2]
[371047636,1752197440334,-6115.7,0.00034999,30]
[371047638,1752197440343,-30787.03456707,0.00035,5]
[371047641,1752197440355,-8935.4160876,0.00035,5]
[371047644,1752197440366,-20050.3549623,0.00035,5]
[371047646,1752197440376,-157.14299461,0.00035026,2]
[371047648,1752197440385,-507.44207894,0.00035126,15]
[371047650,1752197440395,-311.88470336,0.00035308,2]
[371047652,1752197440405,-928.0,0.00035326,2]
[371047654,1752197440413,-952.523,0.00035326,2]
[371047656,1752197440422,-154.53,0.00035452,2]
[371047658,1752197440432,-152.0,0.00035848,3]
[371047660,1752197440441,-666.0,0.00035856,2]
[371047662,1752197440450,-507.4420789,0.00035868,15]
[371047664,1752197440459,-168.58,0.0003589,2]
[371047666,1752197440472,-311.88470336,0.00035962,2]
[371047668,1752197440481,-305.41,0.00036175,2]
[371047670,1752197440490,-305.46,0.00036175,2]
[371047672,1752197440499,-302.15,0.00036175,2]
[371047674,1752197440508,-305.06,0.00036175,2]
[371047676,1752197440517,-302.84,0.00036175,2]
[371047678,1752197440526,-305.21,0.00036175,2]
[371047680,1752197440535,-305.13,0.00036175,2]
[371047682,1752197440545,-303.38,0.00036175,2]
[371047685,1752197440556,-305.41,0.00036175,2]
[371047687,1752197440566,-303.6,0.00036175,2]
[371047689,1752197440575,-300.21,0.00036175,2]
[371047691,1752197440585,-301.74,0.00036175,2]
[371047693,1752197440594,-304.69,0.00036175,2]
[371047694,1752197440604,-1964.15,0.0003643,120]
[371047697,1752197440614,-1000.0,0.00036493,2]
[371047699,1752197440624,-6356.20435705,0.00036541,3]
[371047701,1752197440636,-17615.99827685,0.00036541,3]
[371047703,1752197440646,-5000.0,0.00036551,2]
[371047705,1752197440655,-507.4420789,0.00036609,15]
[371047707,1752197440665,-311.88470336,0.00036617,2]
[371047709,1752197440674,-183.68,0.00036668,2]
[371047711,1752197440683,-511.0,0.00036791,2]
[371047713,1752197440692,-10150.0,0.00037,120]
[371047715,1752197440701,-1000.0,0.00037113,2]
[371047717,1752197440711,-1000.0,0.00037113,2]
[371047719,1752197440723,-1000.0,0.00037113,2]
[371047721,1752197440732,-1000.0,0.00037113,2]
[371047723,1752197440742,-1000.0,0.00037113,2]
[371047725,1752197440751,-1000.0,0.00037113,2]
[371047727,1752197440760,-1000.0,0.00037113,2]
[371047729,1752197440769,-1000.0,0.00037113,2]
[371047731,1752197440778,-1000.0,0.00037113,2]
[371047733,1752197440788,-1000.0,0.00037113,2]
[371047735,1752197440797,-1000.0,0.00037113,2]
[371047737,1752197440806,-1000.0,0.00037113,2]
[371047739,1752197440815,-774.26321575,0.00037113,2]
[371047741,1752197440824,-311.88470336,0.00037271,2]
[371047743,1752197440834,-1000.0,0.000373,2]
[371047745,1752197440843,-507.4420789,0.00037351,15]
[371047747,1752197440853,-499.999999,0.00037538,120]
[371047749,1752197440862,-151.0,0.00037538,120]
[371047751,1752197440871,-21579.71,0.00037538,60]
[371047753,1752197440881,-227.65,0.00037733,2]
[371047755,1752197440890,-311.88470336,0.00037926,2]
[371047756,1752197440900,-1000.0,0.00038,7]
[371047759,1752197440911,-320.81,0.00038017,2]
[371047761,1752197440920,-507.4420789,0.00038092,15]
[371047763,1752197440930,-300.0,0.00038133,88]
[371047765,1752197440940,-511.0,0.00038156,5]
[371047767,1752197440949,-152.0,0.00038265,4]
[371047769,1752197440959,-10467.15813976,0.00038356,26]
[371047771,1752197440973,-1301.99,0.00038356,26]
[371047773,1752197440984,-873.81118342,0.00038356,26]
[371048010,1752197443187,-7620.60869376,0.00038356,26]
[371048012,1752197443199,-7769.41186272,0.00038356,26]
[371048014,1752197443209,-460.0,0.00038356,30]
[371048016,1752197443218,-460.0,0.00038356,30]
[371048018,1752197443228,-460.0,0.00038356,30]
[371048020,1752197443238,-460.0,0.00038356,30]
[371048022,1752197443249,-460.0,0.00038356,30]
[371048024,1752197443258,-460.0,0.00038356,30]
[371048026,1752197443267,-460.0,0.00038356,30]
[371048028,1752197443277,-460.0,0.00038356,30]
[371048030,1752197443286,-460.0,0.00038356,30]
[371048032,1752197443295,-460.0,0.00038356,30]
[371048034,1752197443305,-460.0,0.00038356,30]
[371048036,1752197443315,-460.0,0.00038356,30]
[371048038,1752197443324,-460.0,0.00038356,30]
[371048040,1752197443335,-460.0,0.00038356,30]
[371048042,1752197443344,-460.0,0.00038356,30]
[371048044,1752197443354,-501.9,0.00038356,30]
[371048046,1752197443363,-501.9,0.00038356,30]
[371048048,1752197443373,-460.0,0.00038356,30]
[371048050,1752197443384,-460.0,0.00038356,30]
[371048052,1752197443393,-460.0,0.00038356,30]
[371048054,1752197443403,-460.0,0.00038356,30]
[371048057,1752197443413,-460.0,0.00038356,30]
[371048059,1752197443422,-460.0,0.00038356,30]
[371048061,1752197443432,-460.0,0.00038356,30]
[371048063,1752197443442,-460.0,0.00038356,30]
[371048065,1752197443451,-460.0,0.00038356,30]
[371048067,1752197443462,-460.0,0.00038356,30]
[371048069,1752197443476,-460.0,0.00038356,30]
[371048071,1752197443485,-460.0,0.00038356,30]
[371048073,1752197443495,-460.0,0.00038356,30]
[371048075,1752197443505,-460.0,0.00038356,30]
[371048077,1752197443515,-460.0,0.00038356,30]
[371048079,1752197443524,-1067.3,0.00038356,30]
[371048081,1752197443533,-1067.3,0.00038356,30]
[371048083,1752197443542,-460.0,0.00038356,30]
[371048085,1752197443552,-460.0,0.00038356,30]
[371048088,1752197443564,-460.0,0.00038356,30]
[371048090,1752197443574,-460.0,0.00038356,30]
[371048092,1752197443589,-460.0,0.00038356,30]
[371048094,1752197443599,-460.0,0.00038356,30]
[371048096,1752197443609,-460.0,0.00038356,30]
[371048098,1752197443618,-460.0,0.00038356,30]
[371048100,1752197443628,-645.7,0.00038356,30]
[371048102,1752197443638,-645.7,0.00038356,30]
[371048104,1752197443651,-6663.13,0.00038356,30]
[371048106,1752197443661,-6663.13,0.00038356,30]
[371048108,1752197443671,-460.0,0.00038356,30]
[371048110,1752197443681,-460.0,0.00038356,30]
[371048113,1752197443690,-460.0,0.00038356,30]
[371048115,1752197443700,-460.0,0.00038356,30]
[371048118,1752197443709,-460.0,0.00038356,30]
[371048140,1752197443904,-460.0,0.00038356,30]
[371048142,1752197443917,-460.0,0.00038356,30]
[371048144,1752197443927,-460.0,0.00038356,30]
[371048146,1752197443937,-460.0,0.00038356,30]
[371048148,1752197443946,-460.0,0.00038356,30]
[371048150,1752197443956,-460.0,0.00038356,30]
[371048152,1752197443965,-460.0,0.00038356,30]
[371048155,1752197443975,-460.0,0.00038356,30]
[371048157,1752197443986,-532.74634438,0.00038356,30]
[371048159,1752197443995,-460.0,0.00038356,30]
[371048161,1752197444005,-460.0,0.00038356,30]
[371048163,1752197444015,-460.0,0.00038356,30]
[371048165,1752197444025,-465.31903154,0.00038356,30]
[371048167,1752197444034,-460.0,0.00038356,30]
[371048169,1752197444044,-460.0,0.00038356,30]
[371048170,1752197444053,-460.0,0.00038356,30]
[371048172,1752197444063,-460.0,0.00038356,30]
[371048175,1752197444073,-460.0,0.00038356,30]
[371048177,1752197444082,-497.91507994,0.00038356,30]
[371048179,1752197444092,-460.0,0.00038356,30]
[371048181,1752197444102,-460.0,0.00038356,30]
[371048183,1752197444112,-460.0,0.00038356,30]
[371048185,1752197444121,-460.0,0.00038356,30]
[371048187,1752197444131,-460.0,0.00038356,30]
[371048189,1752197444140,-460.0,0.00038356,30]
[371048191,1752197444150,-460.0,0.00038356,30]
[371048193,1752197444159,-460.0,0.00038356,30]
[371048195,1752197444169,-460.0,0.00038356,30]
[371048197,1752197444179,-465.65327717,0.00038356,30]
[371048199,1752197444189,-460.0,0.00038356,30]
[371048201,1752197444198,-460.0,0.00038356,30]
[371048203,1752197444207,-460.0,0.00038356,30]
[371048205,1752197444217,-460.0,0.00038356,30]
[371048207,1752197444227,-460.0,0.00038356,30]
[371048209,1752197444236,-460.0,0.00038356,30]
[371048211,1752197444246,-460.0,0.00038356,30]
[371048213,1752197444256,-934.64,0.00038356,30]
[371048215,1752197444265,-934.64,0.00038356,30]
[371048217,1752197444275,-460.0,0.00038356,30]
[371048219,1752197444284,-460.0,0.00038356,30]
[371048221,1752197444293,-460.0,0.00038356,30]
[371048223,1752197444303,-460.0,0.00038356,30]
[371048225,1752197444315,-391.0,0.00038523,60]
[371048227,1752197444326,-311.88470336,0.0003858,2]
[371048229,1752197444335,-702.01583072,0.00038684,7]
[371048231,1752197444345,-23972.2026339,0.00038773,3]
[371048233,1752197444355,-860.730364,0.00038783,16]
[371048235,1752197444364,-507.4420789,0.00038834,15]
[371048237,1752197444374,-10150.0,0.00039,120]
[371048239,1752197444384,-1000.0,0.00039,7]
[371048241,1752197444393,-2274.0753876,0.00039,30]
[371048243,1752197444403,-815.51995108,0.000392,30]
[371048246,1752197444414,-311.88470336,0.00039235,2]
[371048248,1752197444423,-244.09,0.00039262,2]
[371048250,1752197444434,-150.0,0.00039262,2]
[371048252,1752197444443,-974.3,0.00039267,2]
[371048254,1752197444453,-171.52,0.00039452,2]
[371048256,1752197444465,-150.0,0.00039452,2]
[371048258,1752197444474,-170.16,0.00039484,2]
[371048260,1752197444484,-2110.0,0.000395,2]
[371048262,1752197444494,-1000.0,0.000395,7]
[371048264,1752197444503,-530.41295,0.000395,2]
[371048266,1752197444513,-511.0,0.00039521,8]
[371048268,1752197444522,-507.4420789,0.00039575,15]
[371048270,1752197444532,-170.16,0.00039682,2]
[371048272,1752197444541,-16598.3675059,0.0003969,3]
[371048274,1752197444552,-10748.83,0.000397,22]
[371048275,1752197444565,-23972.2026339,0.0003979,3]
[371048277,1752197444576,-16598.3675059,0.0003979,3]
[371048279,1752197444585,-1166.3164,0.00039799,2]
[371048281,1752197444595,-2717.96675948,0.00039799,12]
[371048284,1752197444606,-1695.48794519,0.000398,120]